[Event "Late-Titled-Tuesday-Blitz-June-25-2024"]
[Site "Chess.com"]
[Date "2024.06.25"]
[Round "8"]
[White "hoshiboshi"]
[Black "tolimachess"]
[Result "1-0"]
[WhiteElo "2255"]
[BlackElo "2275"]
[TimeControl "180+1"]
[EndTime "15:27:22 PDT"]
[Termination "hoshiboshi won on time"]

1. e4 {[%clk 0:03:00.9]} 1... c6 {[%clk 0:03:00.5]} 2. d4 {[%clk 0:02:59.6]}
2... d5 {[%clk 0:03:01]} 3. e5 {[%clk 0:03:00.2]} 3... c5 {[%clk 0:03:00]} 4.
Nf3 {[%clk 0:02:56.4]} 4... Nc6 {[%clk 0:02:58.7]} 5. dxc5 {[%clk 0:02:54.1]}
5... Bg4 {[%clk 0:02:55.9]} 6. Bb5 {[%clk 0:02:51.7]} 6... e6 {[%clk 0:02:50.9]}
7. b4 {[%clk 0:02:50.4]} 7... Ne7 {[%clk 0:02:39.8]} 8. Nbd2 {[%clk 0:02:36.5]}
8... Ng6 {[%clk 0:02:37.5]} 9. h3 {[%clk 0:02:31]} 9... Bxf3 {[%clk 0:02:33.4]}
10. Nxf3 {[%clk 0:02:31.9]} 10... Be7 {[%clk 0:02:33.8]} 11. Bb2 {[%clk
0:02:27.2]} 11... O-O {[%clk 0:02:32.8]} 12. a3 {[%clk 0:02:18.9]} 12... a5
{[%clk 0:02:24.2]} 13. Bxc6 {[%clk 0:02:12.6]} 13... bxc6 {[%clk 0:02:24.9]} 14.
Bc3 {[%clk 0:02:11.3]} 14... axb4 {[%clk 0:02:21.4]} 15. axb4 {[%clk 0:02:10.4]}
15... Qc7 {[%clk 0:01:38.7]} 16. O-O {[%clk 0:02:03.4]} 16... Qb7 {[%clk
0:01:36.7]} 17. Qd2 {[%clk 0:01:57.1]} 17... Qb5 {[%clk 0:01:25.9]} 18. Rxa8
{[%clk 0:01:39.5]} 18... Rxa8 {[%clk 0:01:24.9]} 19. Ra1 {[%clk 0:01:38.8]}
19... Rxa1+ {[%clk 0:01:03]} 20. Bxa1 {[%clk 0:01:35.6]} 20... Qc4 {[%clk
0:00:56.9]} 21. g3 {[%clk 0:01:19.9]} 21... h6 {[%clk 0:00:55.5]} 22. Bc3 {[%clk
0:01:10.4]} 22... h5 {[%clk 0:00:44.9]} 23. Qd3 {[%clk 0:00:52.9]} 23... Qa2
{[%clk 0:00:31.4]} 24. Kg2 {[%clk 0:00:42.5]} 24... h4 {[%clk 0:00:30]} 25. Qe2
{[%clk 0:00:30.7]} 25... hxg3 {[%clk 0:00:23.3]} 26. fxg3 {[%clk 0:00:29.2]}
26... Qa3 {[%clk 0:00:18.7]} 27. Qd3 {[%clk 0:00:21.3]} 27... Qa2 {[%clk
0:00:16.6]} 28. h4 {[%clk 0:00:20.4]} 28... Qa4 {[%clk 0:00:12.9]} 29. h5 {[%clk
0:00:20.2]} 29... Nf8 {[%clk 0:00:12.8]} 30. Nd4 {[%clk 0:00:19.3]} 30... Nh7
{[%clk 0:00:09.3]} 31. Bd2 {[%clk 0:00:13.9]} 31... Ng5 {[%clk 0:00:04.2]} 32.
Bxg5 {[%clk 0:00:12.7]} 32... Bxg5 {[%clk 0:00:04.9]} 33. Qb3 {[%clk 0:00:12.4]}
33... Qa1 {[%clk 0:00:03.8]} 34. Nxc6 {[%clk 0:00:07.4]} 34... Qc1 {[%clk
0:00:04]} 35. Qd3 {[%clk 0:00:05.7]} 35... Qb1 {[%clk 0:00:01.7]} 36. b5 {[%clk
0:00:05.4]} 36... Qe1 {[%clk 0:00:01.1]} 37. b6 {[%clk 0:00:04.5]} 37... Qb1
{[%clk 0:00:01.5]} 38. Nd4 {[%clk 0:00:03.4]} 1-0

[Event "Late-Titled-Tuesday-Blitz-June-25-2024"]
[Site "Chess.com"]
[Date "2024.06.25"]
[Round "8"]
[White "ninjatrick"]
[Black "TigrVShlyape"]
[Result "0-1"]
[WhiteElo "2523"]
[BlackElo "2980"]
[TimeControl "180+1"]
[EndTime "15:27:33 PDT"]
[Termination "TigrVShlyape won by checkmate"]

1. Nf3 {[%clk 0:03:00]} 1... d5 {[%clk 0:02:59]} 2. e3 {[%clk 0:03:00.1]} 2...
c6 {[%clk 0:02:38.1]} 3. c4 {[%clk 0:02:59.1]} 3... Nf6 {[%clk 0:02:37.7]} 4. d4
{[%clk 0:02:59.5]} 4... g6 {[%clk 0:02:37.7]} 5. Nc3 {[%clk 0:02:59.8]} 5... Bg7
{[%clk 0:02:37.2]} 6. Bd3 {[%clk 0:02:59.1]} 6... O-O {[%clk 0:02:37.1]} 7. O-O
{[%clk 0:02:59.4]} 7... Bg4 {[%clk 0:02:36.1]} 8. h3 {[%clk 0:02:58.7]} 8...
Bxf3 {[%clk 0:02:36]} 9. Qxf3 {[%clk 0:02:58.8]} 9... e6 {[%clk 0:02:36.6]} 10.
Rd1 {[%clk 0:02:56.5]} 10... Nbd7 {[%clk 0:02:36.4]} 11. e4 {[%clk 0:02:56]}
11... dxe4 {[%clk 0:02:35.9]} 12. Nxe4 {[%clk 0:02:56.9]} 12... Nxe4 {[%clk
0:02:36]} 13. Bxe4 {[%clk 0:02:57.8]} 13... Nb6 {[%clk 0:02:29.5]} 14. Qd3
{[%clk 0:02:29.6]} 14... Qe7 {[%clk 0:02:20.7]} 15. Bd2 {[%clk 0:02:22.9]} 15...
Rfd8 {[%clk 0:02:20.2]} 16. Bc3 {[%clk 0:02:22.3]} 16... Rd7 {[%clk 0:02:20.2]}
17. b3 {[%clk 0:02:07.5]} 17... Rad8 {[%clk 0:02:19.9]} 18. Qe3 {[%clk 0:02:02]}
18... Nc8 {[%clk 0:02:10.7]} 19. c5 {[%clk 0:01:41.7]} 19... Qh4 {[%clk
0:02:03.2]} 20. Rd3 {[%clk 0:01:23]} 20... Ne7 {[%clk 0:02:00.7]} 21. Rad1
{[%clk 0:01:22.5]} 21... Nd5 {[%clk 0:01:59.9]} 22. Bxd5 {[%clk 0:01:22.9]}
22... Rxd5 {[%clk 0:02:00]} 23. f3 {[%clk 0:01:20.5]} 23... Bh6 {[%clk
0:01:58.5]} 24. Qe4 {[%clk 0:01:17.6]} 24... Qg3 {[%clk 0:01:51.7]} 25. Be1
{[%clk 0:01:07.9]} 25... Qc7 {[%clk 0:01:49.5]} 26. Bf2 {[%clk 0:00:54.5]} 26...
R8d7 {[%clk 0:01:47.2]} 27. Qe2 {[%clk 0:00:52.8]} 27... Bf4 {[%clk 0:01:45.5]}
28. Qe4 {[%clk 0:00:49.2]} 28... Bh2+ {[%clk 0:01:32.6]} 29. Kh1 {[%clk
0:00:49.1]} 29... Bg3 {[%clk 0:01:33.2]} 30. Bg1 {[%clk 0:00:46.6]} 30... Qd8
{[%clk 0:01:26.8]} 31. f4 {[%clk 0:00:40.4]} 31... Bh4 {[%clk 0:01:25.9]} 32. g3
{[%clk 0:00:40.6]} 32... Bf6 {[%clk 0:01:25.4]} 33. Kh2 {[%clk 0:00:38.7]} 33...
a5 {[%clk 0:01:19]} 34. a4 {[%clk 0:00:37.9]} 34... b6 {[%clk 0:01:18.3]} 35.
cxb6 {[%clk 0:00:25.9]} 35... Qxb6 {[%clk 0:01:18]} 36. R1d2 {[%clk 0:00:20.8]}
36... h5 {[%clk 0:01:17]} 37. g4 {[%clk 0:00:20.5]} 37... Qd8 {[%clk 0:01:13.7]}
38. g5 {[%clk 0:00:21]} 38... Bg7 {[%clk 0:01:13.3]} 39. h4 {[%clk 0:00:20.9]}
39... c5 {[%clk 0:01:12.7]} 40. Rc2 {[%clk 0:00:19.2]} 40... Bxd4 {[%clk
0:01:03.1]} 41. Bxd4 {[%clk 0:00:19.6]} 41... Rxd4 {[%clk 0:01:02.9]} 42. Rxd4
{[%clk 0:00:20.3]} 42... cxd4 {[%clk 0:01:01.5]} 43. Qd3 {[%clk 0:00:20.7]}
43... Qb8 {[%clk 0:00:58.7]} 44. Kg3 {[%clk 0:00:20.9]} 44... e5 {[%clk
0:00:57.5]} 45. Rf2 {[%clk 0:00:15.4]} 45... Re7 {[%clk 0:00:53]} 46. Qe4 {[%clk
0:00:14.4]} 46... exf4+ {[%clk 0:00:52.7]} 47. Qxf4 {[%clk 0:00:14.5]} 47...
Re3+ {[%clk 0:00:52.4]} 48. Rf3 {[%clk 0:00:12.9]} 48... Rxf3+ {[%clk
0:00:51.5]} 49. Kxf3 {[%clk 0:00:12.4]} 49... Qxb3+ {[%clk 0:00:52]} 50. Ke4
{[%clk 0:00:12.7]} 50... Qxa4 {[%clk 0:00:51.1]} 51. Qb8+ {[%clk 0:00:12.3]}
51... Kh7 {[%clk 0:00:51]} 52. Qc7 {[%clk 0:00:12.5]} 52... d3+ {[%clk
0:00:45.5]} 53. Kxd3 {[%clk 0:00:11.9]} 53... Qb3+ {[%clk 0:00:46]} 54. Kd4
{[%clk 0:00:11.9]} 54... a4 {[%clk 0:00:46.1]} 55. Ke5 {[%clk 0:00:11.7]} 55...
a3 {[%clk 0:00:46]} 56. Qa7 {[%clk 0:00:08.1]} 56... a2 {[%clk 0:00:45.5]} 57.
Qa8 {[%clk 0:00:08.3]} 57... Qb2+ {[%clk 0:00:45.1]} 58. Kd6 {[%clk 0:00:09.1]}
58... a1=Q {[%clk 0:00:44.5]} 59. Qe8 {[%clk 0:00:09.5]} 59... Qd4+ {[%clk
0:00:43.8]} 60. Ke7 {[%clk 0:00:10.1]} 60... Qe5+ {[%clk 0:00:43.5]} 61. Kxf7
{[%clk 0:00:10.6]} 61... Qa7+ {[%clk 0:00:43.1]} 62. Kf8 {[%clk 0:00:11]} 62...
Qeg7# {[%clk 0:00:42.4]} 0-1

[Event "Late-Titled-Tuesday-Blitz-June-25-2024"]
[Site "Chess.com"]
[Date "2024.06.25"]
[Round "8"]
[White "betta2004"]
[Black "WilsonPalencia21"]
[Result "0-1"]
[WhiteElo "2498"]
[BlackElo "2615"]
[TimeControl "180+1"]
[EndTime "15:27:33 PDT"]
[Termination "WilsonPalencia21 won by resignation"]

1. Nf3 {[%clk 0:03:00.9]} 1... c5 {[%clk 0:02:58.3]} 2. b3 {[%clk 0:03:01.8]}
2... Nc6 {[%clk 0:02:57.4]} 3. Bb2 {[%clk 0:03:01.7]} 3... b6 {[%clk 0:02:56.6]}
4. e3 {[%clk 0:03:01.3]} 4... Bb7 {[%clk 0:02:57]} 5. d4 {[%clk 0:02:57.7]} 5...
e6 {[%clk 0:02:57.2]} 6. Nbd2 {[%clk 0:02:50.7]} 6... Nf6 {[%clk 0:02:57]} 7.
Bd3 {[%clk 0:02:50.4]} 7... Be7 {[%clk 0:02:56.8]} 8. O-O {[%clk 0:02:50]} 8...
d6 {[%clk 0:02:56.8]} 9. c4 {[%clk 0:02:49.2]} 9... Qc7 {[%clk 0:02:56.8]} 10.
Rc1 {[%clk 0:02:48.5]} 10... e5 {[%clk 0:02:55]} 11. Bb1 {[%clk 0:02:47.1]}
11... O-O {[%clk 0:02:51]} 12. d5 {[%clk 0:02:47.3]} 12... Nb8 {[%clk
0:02:45.8]} 13. Ng5 {[%clk 0:02:47.8]} 13... Nbd7 {[%clk 0:02:42.3]} 14. f4
{[%clk 0:02:46.8]} 14... h6 {[%clk 0:02:40]} 15. Ngf3 {[%clk 0:02:31.8]} 15...
exf4 {[%clk 0:02:38.4]} 16. exf4 {[%clk 0:02:32.1]} 16... Rfe8 {[%clk
0:02:37.6]} 17. Qc2 {[%clk 0:02:32]} 17... b5 {[%clk 0:02:36.9]} 18. Rce1 {[%clk
0:02:30.3]} 18... Bf8 {[%clk 0:02:33.6]} 19. Ne4 {[%clk 0:02:20.1]} 19... Nxe4
{[%clk 0:02:24.2]} 20. Rxe4 {[%clk 0:02:21]} 20... Rxe4 {[%clk 0:02:23.8]} 21.
Qxe4 {[%clk 0:02:21.9]} 21... g6 {[%clk 0:02:15.1]} 22. Nh4 {[%clk 0:02:21.3]}
22... Bg7 {[%clk 0:01:59.6]} 23. Bxg7 {[%clk 0:02:20.2]} 23... Kxg7 {[%clk
0:01:59.4]} 24. Nxg6 {[%clk 0:02:20.6]} 24... Nf6 {[%clk 0:01:59.2]} 25. Qc2
{[%clk 0:02:10.7]} 25... bxc4 {[%clk 0:01:53.6]} 26. bxc4 {[%clk 0:02:09.3]}
26... Re8 {[%clk 0:01:51.3]} 27. Nh4 {[%clk 0:02:08.6]} 27... Bc8 {[%clk
0:01:51.5]} 28. Qc3 {[%clk 0:02:03.6]} 28... Qe7 {[%clk 0:01:49.6]} 29. Bf5
{[%clk 0:01:54.8]} 29... Ba6 {[%clk 0:01:32.6]} 30. Bd3 {[%clk 0:01:35]} 30...
Bc8 {[%clk 0:01:22.9]} 31. Kh1 {[%clk 0:01:26.3]} 31... Qe3 {[%clk 0:01:17.4]}
32. h3 {[%clk 0:01:19.3]} 32... Bxh3 {[%clk 0:01:00.7]} 33. Kh2 {[%clk
0:01:02.2]} 33... Bd7 {[%clk 0:00:48]} 34. Rf3 {[%clk 0:01:02.6]} 34... Qd4
{[%clk 0:00:45.2]} 35. Rg3+ {[%clk 0:00:58.1]} 35... Ng4+ {[%clk 0:00:45]} 36.
Rxg4+ {[%clk 0:00:52.7]} 36... Bxg4 {[%clk 0:00:44.8]} 37. Qxd4+ {[%clk
0:00:48.9]} 37... cxd4 {[%clk 0:00:44.8]} 38. Bf5 {[%clk 0:00:48.4]} 38... Be2
{[%clk 0:00:37.3]} 39. Bd7 {[%clk 0:00:47.4]} 39... Rd8 {[%clk 0:00:37.2]} 40.
Ba4 {[%clk 0:00:39.4]} 40... d3 {[%clk 0:00:37.1]} 41. Nf5+ {[%clk 0:00:39.6]}
41... Kf6 {[%clk 0:00:37.3]} 42. Nd4 {[%clk 0:00:40.3]} 42... Rb8 {[%clk
0:00:33.4]} 43. Bb3 {[%clk 0:00:38.9]} 43... Re8 {[%clk 0:00:31.1]} 44. Nb5
{[%clk 0:00:28.2]} 44... d2 {[%clk 0:00:28.1]} 45. Nxd6 {[%clk 0:00:27.4]} 45...
Re3 {[%clk 0:00:25.5]} 46. Bc2 {[%clk 0:00:23.4]} 46... Bd3 {[%clk 0:00:20.5]}
47. Ba4 {[%clk 0:00:16.4]} 47... Ke7 {[%clk 0:00:16.2]} 48. Nc8+ {[%clk
0:00:14.8]} 48... Kd8 {[%clk 0:00:16.8]} 49. Nxa7 {[%clk 0:00:15]} 49... Bxc4
{[%clk 0:00:16.8]} 50. d6 {[%clk 0:00:10.8]} 50... Bd5 {[%clk 0:00:14.2]} 51.
Nb5 {[%clk 0:00:07.7]} 51... Bc6 {[%clk 0:00:13.6]} 52. d7 {[%clk 0:00:01.8]}
52... Bxd7 {[%clk 0:00:13.3]} 0-1

[Event "Late-Titled-Tuesday-Blitz-June-25-2024"]
[Site "Chess.com"]
[Date "2024.06.25"]
[Round "8"]
[White "nindjaxx8"]
[Black "CrimeFightingSpider07"]
[Result "0-1"]
[WhiteElo "2705"]
[BlackElo "2563"]
[TimeControl "180+1"]
[EndTime "15:27:34 PDT"]
[Termination "CrimeFightingSpider07 won by checkmate"]

1. d4 {[%clk 0:03:00.9]} 1... Nf6 {[%clk 0:02:53.1]} 2. c4 {[%clk 0:03:00.4]}
2... e6 {[%clk 0:02:53.2]} 3. Nc3 {[%clk 0:03:00.3]} 3... d5 {[%clk 0:02:53.8]}
4. cxd5 {[%clk 0:03:00.2]} 4... exd5 {[%clk 0:02:53.7]} 5. Bg5 {[%clk
0:03:00.7]} 5... Be7 {[%clk 0:02:53.9]} 6. e3 {[%clk 0:03:00.5]} 6... O-O {[%clk
0:02:54.2]} 7. Nf3 {[%clk 0:02:59.8]} 7... b6 {[%clk 0:02:54.6]} 8. Bd3 {[%clk
0:02:59.7]} 8... Bb7 {[%clk 0:02:55.1]} 9. O-O {[%clk 0:02:59.5]} 9... Nbd7
{[%clk 0:02:55.7]} 10. Rc1 {[%clk 0:02:59.2]} 10... h6 {[%clk 0:02:55.9]} 11.
Bh4 {[%clk 0:02:59.4]} 11... c5 {[%clk 0:02:55.9]} 12. Re1 {[%clk 0:02:56.9]}
12... Ne4 {[%clk 0:02:52.8]} 13. Bxe7 {[%clk 0:02:55.9]} 13... Qxe7 {[%clk
0:02:53.1]} 14. Qc2 {[%clk 0:02:55]} 14... Ndf6 {[%clk 0:02:40.4]} 15. Red1
{[%clk 0:02:54.2]} 15... Rac8 {[%clk 0:02:37.1]} 16. Qb1 {[%clk 0:02:48.1]}
16... Rfd8 {[%clk 0:02:35.4]} 17. h3 {[%clk 0:02:33]} 17... cxd4 {[%clk
0:02:24.3]} 18. Nxd4 {[%clk 0:02:31.6]} 18... Nxc3 {[%clk 0:02:24.6]} 19. bxc3
{[%clk 0:02:28.8]} 19... Rc5 {[%clk 0:02:20.8]} 20. Nf5 {[%clk 0:02:23.6]} 20...
Qc7 {[%clk 0:02:20.1]} 21. Qb4 {[%clk 0:02:17.6]} 21... Bc8 {[%clk 0:02:15.6]}
22. Nd4 {[%clk 0:02:09.1]} 22... Bd7 {[%clk 0:02:15.5]} 23. Nb3 {[%clk
0:02:01.3]} 23... Rc6 {[%clk 0:02:09.1]} 24. Qd4 {[%clk 0:01:56.8]} 24... Be6
{[%clk 0:02:02.7]} 25. Nd2 {[%clk 0:01:47.1]} 25... Qe7 {[%clk 0:01:58.3]} 26.
Nf3 {[%clk 0:01:44.5]} 26... Qc5 {[%clk 0:01:56.6]} 27. Qf4 {[%clk 0:01:41.7]}
27... Qd6 {[%clk 0:01:52.2]} 28. Qa4 {[%clk 0:01:33.7]} 28... Rc7 {[%clk
0:01:47.9]} 29. Nd4 {[%clk 0:01:32.4]} 29... Bd7 {[%clk 0:01:48.2]} 30. Qb3
{[%clk 0:01:24.2]} 30... Rdc8 {[%clk 0:01:43.9]} 31. Ba6 {[%clk 0:01:23.5]}
31... Re8 {[%clk 0:01:40.6]} 32. c4 {[%clk 0:01:13.8]} 32... Rf8 {[%clk
0:01:16.9]} 33. cxd5 {[%clk 0:01:04.4]} 33... Rxc1 {[%clk 0:01:17.1]} 34. Rxc1
{[%clk 0:01:04.4]} 34... Nxd5 {[%clk 0:01:16.5]} 35. Bb5 {[%clk 0:00:32.1]}
35... Rc8 {[%clk 0:00:54]} 36. Rd1 {[%clk 0:00:18]} 36... Nc3 {[%clk 0:00:48.1]}
37. Bxd7 {[%clk 0:00:17.1]} 37... Qxd7 {[%clk 0:00:48.2]} 38. Rc1 {[%clk
0:00:13.9]} 38... Ne4 {[%clk 0:00:38.5]} 39. Rd1 {[%clk 0:00:13.7]} 39... Nc3
{[%clk 0:00:38.4]} 40. Rc1 {[%clk 0:00:07.4]} 40... Ne4 {[%clk 0:00:38]} 41. Rf1
{[%clk 0:00:04.5]} 41... Nd2 {[%clk 0:00:36.3]} 42. Qd3 {[%clk 0:00:04.8]} 42...
Nxf1 {[%clk 0:00:36.1]} 43. Qxf1 {[%clk 0:00:05.7]} 43... Qd5 {[%clk 0:00:28.2]}
44. Qa6 {[%clk 0:00:05.4]} 44... Rc1+ {[%clk 0:00:26.4]} 45. Kh2 {[%clk
0:00:05.3]} 45... Qe5+ {[%clk 0:00:25.7]} 46. g3 {[%clk 0:00:02.3]} 46... Qd5
{[%clk 0:00:22.7]} 47. f3 {[%clk 0:00:02]} 47... Qc4 {[%clk 0:00:18.2]} 48. Qxa7
{[%clk 0:00:01]} 48... Qf1 {[%clk 0:00:17.2]} 49. g4 {[%clk 0:00:01.2]} 49...
Qg1# {[%clk 0:00:16.5]} 0-1

[Event "Late-Titled-Tuesday-Blitz-June-25-2024"]
[Site "Chess.com"]
[Date "2024.06.25"]
[Round "8"]
[White "Puzzlebot_1294"]
[Black "Chessmissile07"]
[Result "0-1"]
[WhiteElo "2645"]
[BlackElo "2824"]
[TimeControl "180+1"]
[EndTime "15:27:37 PDT"]
[Termination "Chessmissile07 won by resignation"]

1. d4 {[%clk 0:03:00.9]} 1... a6 {[%clk 0:03:00.9]} 2. a4 {[%clk 0:02:55.9]}
2... d5 {[%clk 0:02:57]} 3. Ra3 {[%clk 0:02:55.7]} 3... Nf6 {[%clk 0:02:45.7]}
4. Nf3 {[%clk 0:02:47.5]} 4... Bf5 {[%clk 0:02:37.6]} 5. Ra1 {[%clk 0:02:35.9]}
5... e6 {[%clk 0:02:35.9]} 6. c3 {[%clk 0:02:35]} 6... Nbd7 {[%clk 0:02:33.6]}
7. e3 {[%clk 0:02:34.2]} 7... Bd6 {[%clk 0:02:33.3]} 8. Bd3 {[%clk 0:02:34.2]}
8... Ne4 {[%clk 0:02:29.6]} 9. Qe2 {[%clk 0:02:29.5]} 9... O-O {[%clk
0:02:28.4]} 10. Nbd2 {[%clk 0:02:28.1]} 10... Ndf6 {[%clk 0:02:19.7]} 11. O-O
{[%clk 0:02:07.7]} 11... h6 {[%clk 0:02:13.1]} 12. Rd1 {[%clk 0:01:53.6]} 12...
Ng4 {[%clk 0:01:50.5]} 13. Rf1 {[%clk 0:01:51.8]} 13... Qf6 {[%clk 0:01:38.7]}
14. h3 {[%clk 0:01:43.9]} 14... Ngxf2 {[%clk 0:01:25.6]} 15. Rxf2 {[%clk
0:01:30.2]} 15... Ng3 {[%clk 0:01:25]} 16. Qd1 {[%clk 0:01:30]} 16... Bxd3
{[%clk 0:01:24.5]} 17. Ne5 {[%clk 0:01:29.7]} 17... Bf5 {[%clk 0:00:55.8]} 18.
Nd7 {[%clk 0:01:13.3]} 18... Qg6 {[%clk 0:00:55.7]} 19. Nxf8 {[%clk 0:01:13.6]}
19... Rxf8 {[%clk 0:00:56.3]} 20. Rf3 {[%clk 0:00:56.1]} 20... Ne4 {[%clk
0:00:27.5]} 21. Kf1 {[%clk 0:00:28.3]} 21... Ng5 {[%clk 0:00:18.8]} 22. Rf2
{[%clk 0:00:24.8]} 22... Bd3+ {[%clk 0:00:18.5]} 23. Ke1 {[%clk 0:00:21]} 23...
Bg3 {[%clk 0:00:17.7]} 24. Qg4 {[%clk 0:00:17.1]} 24... Ne4 {[%clk 0:00:12.6]}
25. Nxe4 {[%clk 0:00:16.3]} 25... dxe4 {[%clk 0:00:12.8]} 26. b3 {[%clk
0:00:10.8]} 26... h5 {[%clk 0:00:12.4]} 27. Qd1 {[%clk 0:00:09]} 27... f5 {[%clk
0:00:11.4]} 28. Ba3 {[%clk 0:00:07.7]} 28... Rf7 {[%clk 0:00:11.3]} 29. Qd2
{[%clk 0:00:08.1]} 29... h4 {[%clk 0:00:06.4]} 30. Kd1 {[%clk 0:00:06.7]} 30...
Bxf2 {[%clk 0:00:05.4]} 31. Qxf2 {[%clk 0:00:07.6]} 31... Qg3 {[%clk 0:00:05.6]}
32. Qxg3 {[%clk 0:00:07.1]} 32... hxg3 {[%clk 0:00:06.5]} 33. Kd2 {[%clk
0:00:05]} 33... g5 {[%clk 0:00:07.1]} 34. c4 {[%clk 0:00:03]} 34... f4 {[%clk
0:00:07.3]} 35. Re1 {[%clk 0:00:01.4]} 35... f3 {[%clk 0:00:06.3]} 36. gxf3
{[%clk 0:00:01.4]} 36... exf3 {[%clk 0:00:07]} 37. Kxd3 {[%clk 0:00:01.2]} 37...
f2 {[%clk 0:00:07.4]} 38. Rc1 {[%clk 0:00:01.6]} 38... g2 {[%clk 0:00:07.6]} 39.
d5 {[%clk 0:00:02]} 39... f1=Q+ {[%clk 0:00:07.9]} 40. Rxf1 {[%clk 0:00:02]}
40... gxf1=Q+ {[%clk 0:00:08.8]} 41. Kd4 {[%clk 0:00:02.7]} 41... exd5 {[%clk
0:00:09.3]} 42. cxd5 {[%clk 0:00:03.6]} 42... Qd1+ {[%clk 0:00:09.4]} 43. Ke5
{[%clk 0:00:03.9]} 43... Qxb3 {[%clk 0:00:09]} 44. Bc5 {[%clk 0:00:02.7]} 44...
Rd7 {[%clk 0:00:07.5]} 45. e4 {[%clk 0:00:02.5]} 45... Qc3+ {[%clk 0:00:07]} 46.
Bd4 {[%clk 0:00:03]} 46... Re7+ {[%clk 0:00:07.4]} 47. Kf5 {[%clk 0:00:02.5]}
47... Qxd4 {[%clk 0:00:07.9]} 0-1

[Event "Late-Titled-Tuesday-Blitz-June-25-2024"]
[Site "Chess.com"]
[Date "2024.06.25"]
[Round "8"]
[White "fin"]
[Black "yaguigor"]
[Result "1-0"]
[WhiteElo "2725"]
[BlackElo "2553"]
[TimeControl "180+1"]
[EndTime "15:27:39 PDT"]
[Termination "fin won by resignation"]

1. e4 {[%clk 0:02:58.9]} 1... c5 {[%clk 0:02:59.2]} 2. Nf3 {[%clk 0:02:58.4]}
2... Nc6 {[%clk 0:02:59.7]} 3. c3 {[%clk 0:02:58]} 3... Nf6 {[%clk 0:02:58.8]}
4. e5 {[%clk 0:02:58.2]} 4... Nd5 {[%clk 0:02:59.5]} 5. Bc4 {[%clk 0:02:58.9]}
5... e6 {[%clk 0:02:59.2]} 6. d4 {[%clk 0:02:58.4]} 6... cxd4 {[%clk 0:02:59.7]}
7. cxd4 {[%clk 0:02:58.4]} 7... d6 {[%clk 0:03:00.3]} 8. exd6 {[%clk 0:02:57.8]}
8... Qxd6 {[%clk 0:02:58.9]} 9. Nc3 {[%clk 0:02:58.1]} 9... Be7 {[%clk
0:02:58.9]} 10. O-O {[%clk 0:02:57.7]} 10... O-O {[%clk 0:02:58.8]} 11. Re1
{[%clk 0:02:57.6]} 11... b6 {[%clk 0:02:52.7]} 12. Nxd5 {[%clk 0:02:43.9]} 12...
exd5 {[%clk 0:02:51.3]} 13. Bd3 {[%clk 0:02:44.7]} 13... Bg4 {[%clk 0:02:43]}
14. Be3 {[%clk 0:02:34.4]} 14... Bf6 {[%clk 0:02:39.6]} 15. h3 {[%clk
0:02:33.8]} 15... Bxf3 {[%clk 0:02:38.5]} 16. Qxf3 {[%clk 0:02:32.4]} 16... Bxd4
{[%clk 0:02:03.2]} 17. Bxd4 {[%clk 0:02:17.2]} 17... Nxd4 {[%clk 0:02:02.4]} 18.
Qg4 {[%clk 0:02:16.3]} 18... Ne6 {[%clk 0:01:59]} 19. Rad1 {[%clk 0:02:16]}
19... Rad8 {[%clk 0:01:50.2]} 20. Bf5 {[%clk 0:02:06.7]} 20... Rfe8 {[%clk
0:01:36.6]} 21. Qh4 {[%clk 0:02:01.7]} 21... g6 {[%clk 0:01:34.6]} 22. Bxe6
{[%clk 0:02:01.7]} 22... Rxe6 {[%clk 0:01:27.5]} 23. Rxe6 {[%clk 0:02:01.6]}
23... fxe6 {[%clk 0:01:28]} 24. Rd3 {[%clk 0:01:58.2]} 24... Rf8 {[%clk
0:01:26.1]} 25. Qg4 {[%clk 0:01:54]} 25... e5 {[%clk 0:01:23]} 26. Qe4 {[%clk
0:01:38.5]} 26... Rd8 {[%clk 0:01:21.1]} 27. Qe2 {[%clk 0:01:35.6]} 27... d4
{[%clk 0:01:18]} 28. Ra3 {[%clk 0:01:28.1]} 28... d3 {[%clk 0:01:12]} 29. Qd2
{[%clk 0:01:26.2]} 29... a5 {[%clk 0:01:09.9]} 30. f3 {[%clk 0:01:21.8]} 30...
Qd4+ {[%clk 0:01:07.2]} 31. Kh1 {[%clk 0:01:20]} 31... e4 {[%clk 0:01:07.3]} 32.
fxe4 {[%clk 0:01:18.3]} 32... Qxe4 {[%clk 0:01:06.5]} 33. Rc3 {[%clk 0:01:04]}
33... Qe2 {[%clk 0:00:59.6]} 34. Qg5 {[%clk 0:00:44.4]} 34... Rf8 {[%clk
0:00:31.1]} 35. Qd5+ {[%clk 0:00:39.7]} 35... Rf7 {[%clk 0:00:26.7]} 36. Rxd3
{[%clk 0:00:30]} 36... Qf1+ {[%clk 0:00:23.5]} 37. Kh2 {[%clk 0:00:29]} 37...
Qf4+ {[%clk 0:00:24.4]} 38. Rg3 {[%clk 0:00:21.9]} 38... Kg7 {[%clk 0:00:21.5]}
39. a3 {[%clk 0:00:19]} 39... h5 {[%clk 0:00:20.5]} 40. Qe6 {[%clk 0:00:15.1]}
40... Rf6 {[%clk 0:00:18.9]} 41. Qe7+ {[%clk 0:00:14.5]} 41... Rf7 {[%clk
0:00:18.9]} 42. Qe6 {[%clk 0:00:14.2]} 42... h4 {[%clk 0:00:18.5]} 43. Qxg6+
{[%clk 0:00:14.2]} 43... Kf8 {[%clk 0:00:19.1]} 44. Qg8+ {[%clk 0:00:07.5]}
44... Ke7 {[%clk 0:00:19.2]} 45. Qg5+ {[%clk 0:00:08.3]} 45... Kd6 {[%clk
0:00:16.3]} 46. Qxf4+ {[%clk 0:00:08.5]} 46... Rxf4 {[%clk 0:00:16.5]} 47. Rg4
{[%clk 0:00:08.8]} 47... Ke5 {[%clk 0:00:13.4]} 48. Rxf4 {[%clk 0:00:05.7]}
48... Kxf4 {[%clk 0:00:12.9]} 49. a4 {[%clk 0:00:06.4]} 49... Ke3 {[%clk
0:00:09.8]} 50. g3 {[%clk 0:00:06.9]} 50... hxg3+ {[%clk 0:00:08.1]} 51. Kxg3
{[%clk 0:00:07.8]} 51... Kd3 {[%clk 0:00:08.3]} 52. h4 {[%clk 0:00:08.2]} 52...
Kc2 {[%clk 0:00:08.6]} 53. h5 {[%clk 0:00:08.7]} 53... Kxb2 {[%clk 0:00:09.1]}
54. h6 {[%clk 0:00:09.4]} 54... Ka3 {[%clk 0:00:08.9]} 55. h7 {[%clk 0:00:10.1]}
55... Kxa4 {[%clk 0:00:09.8]} 56. h8=Q {[%clk 0:00:10.8]} 1-0